Workbook

Sheet Inndata budsjett (hidden)
A2: Materialer | K2: Lim inn alt i celle K4: | M2: 3 | N2: 4 | O2: 5 | P2: 6 | Q2: 7 | R2: 8 | S2: 9 | T2: 10 | U2: 11 | V2: 12 | W2: 13 | X2: 14 | Y2: 15 | Z2: 16 | AA2: 17 | AB2: 18
A3: MATERIALER
A4: 4004 | B4: YTTERDØRER | F4: 1 | G4: =IF(H4=1,I4,) -> 0 | H4: =COUNT(I4) -> 0 | I4: =VLOOKUP(4004,$K$4:$AD$110,4,FALSE) -> 
A5: 4010 | B5: BYGNINGSPLATER, | F5: 2 | G5: 0 | H5: 0 | I5: =VLOOKUP(4010,$K$4:$AD$110,4,FALSE) -> 
A6: 4011 | B6: PAPP, FOLIE OG MEMBRAN | F6: 3 | G6: 0 | H6: 0 | I6: =VLOOKUP(4011,$K$4:$AD$110,4,FALSE) -> 
A7: 4012 | B7: SPIKER, SKRUER, LIM, BESL | F7: 4 | G7: 0 | H7: 0 | I7: =VLOOKUP(4012,$K$4:$AD$110,4,FALSE) -> 
A8: 4013 | B8: ISOLASJON | F8: 5 | G8: 0 | H8: 0 | I8: =VLOOKUP(4013,$K$4:$AD$110,4,FALSE) -> 
A9: 4014 | B9: TAKTEKKING, STEIN/METALL | F9: 6 | G9: 0 | H9: 0 | I9: =VLOOKUP(4014,$K$4:$AD$110,4,FALSE) -> 
A10: 4015 | B10: TAKRENNER MED TILBEHØR | F10: 7 | G10: 0 | H10: 0 | I10: =VLOOKUP(4015,$K$4:$AD$110,4,FALSE) -> 
A11: 4017 | B11: BRANNVARSLER/SLUKKER | F11: 8 | G11: 0 | H11: 0 | I11: =VLOOKUP(4017,$K$4:$AD$110,4,FALSE) -> 
A12: 4020 | B12: STÅLPROFILER | F12: 9 | G12: 0 | H12: 0 | I12: =VLOOKUP(4020,$K$4:$AD$110,4,FALSE) -> 
A13: 4022 | B13: TAKVINDUER | F13: 10 | G13: 0 | H13: 0 | I13: =VLOOKUP(4022,$K$4:$AD$110,4,FALSE) -> 
A14: 4023 | B14: OVN, PEIS, STÅLPIPE | F14: 11 | G14: 0 | H14: 0 | I14: =VLOOKUP(4023,$K$4:$AD$110,4,FALSE) -> 
A15: 4024 | B15: BESLAG | F15: 12 | G15: 0 | H15: 0 | I15: =VLOOKUP(4024,$K$4:$AD$110,4,FALSE) -> 
A16: 4025 | B16: INNVENDIGE DØRER | F16: 13 | G16: 0 | H16: 0 | I16: =VLOOKUP(4025,$K$4:$AD$110,4,FALSE) -> 
A17: 4026 | B17: GLASS OG METALLPROFILER | F17: 14 | G17: 0 | H17: 0 | I17: =VLOOKUP(4026,$K$4:$AD$110,4,FALSE) -> 
A18: 4029 | B18: GARASJEPORTER | F18: 15 | G18: 0 | H18: 0 | I18: =VLOOKUP(4029,$K$4:$AD$110,4,FALSE) -> 
A19: 4030 | B19: LIMTRE OG KERTO | F19: 16 | G19: 0 | H19: 0 | I19: =VLOOKUP(4030,$K$4:$AD$110,4,FALSE) -> 
A20: 4031 | B20: TRELAST | F20: 17 | G20: 0 | H20: 0 | I20: =VLOOKUP(4031,$K$4:$AD$110,4,FALSE) -> 
A21: 4033 | B21: PARKETT OG GULVBORD | F21: 18 | G21: 0 | H21: 0 | I21: =VLOOKUP(4033,$K$4:$AD$110,4,FALSE) -> 
A22: 4034 | B22: LISTVERK | F22: 19 | G22: 0 | H22: 0 | I22: =VLOOKUP(4034,$K$4:$AD$110,4,FALSE) -> 
A23: 4049 | B23: STØVAVSUG | F23: 20 | G23: 0 | H23: 0 | I23: =VLOOKUP(4049,$K$4:$AD$110,4,FALSE) -> 
A24: ORDRESTYRTE LEVERANSER | F24: 21
A25: 4106 | B25: TAKSTOLER/TAKVERK | F25: 22 | G25: 0 | H25: 0 | I25: =VLOOKUP(4106,$K$4:$AD$110,4,FALSE) -> 
A26: 4107 | B26: VINDUER OG BALKONGDØRER | F26: 23 | G26: 0 | H26: 0 | I26: =VLOOKUP(4107,$K$4:$AD$110,4,FALSE) -> 
A27: 4109 | B27: INNVENDIGE TRAPPER | F27: 24 | G27: 0 | H27: 0 | I27: =VLOOKUP(4109,$K$4:$AD$110,4,FALSE) -> 
A28: 4127 | B28: KONSTRUKSJONSPAKKE VEGG/BJELKELAG/TAK | F28: 25 | G28: 0 | H28: 0 | I28: =VLOOKUP(4127,$K$4:$AD$110,4,FALSE) -> 
A29: 4132 | B29: I-TREBJELKER | F29: 26 | G29: 0 | H29: 0 | I29: =VLOOKUP(4132,$K$4:$AD$110,4,FALSE) -> 
A30: 4148 | B30: VENTILASJON | F30: 27 | G30: 0 | H30: 0 | I30: =VLOOKUP(4148,$K$4:$AD$110,4,FALSE) -> 
A31: 4150 | B31: GARDEROBEINNREDNING | F31: 28 | G31: 0 | H31: 0 | I31: =VLOOKUP(4150,$K$4:$AD$110,4,FALSE) -> 
A32: 4151 | B32: KJØKKENINNREDNING | F32: 29 | G32: 0 | H32: 0 | I32: =VLOOKUP(4151,$K$4:$AD$110,4,FALSE) -> 
A33: 4152 | B33: BADEROMSINNREDNING | F33: 30 | G33: 0 | H33: 0 | I33: =VLOOKUP(4152,$K$4:$AD$110,4,FALSE) -> 
A34: ANNET | F34: 31
A35: 4413 | B35: FORSIKRINGER /GARANTIER | F35: 32 | G35: 0 | H35: 0 | I35: =VLOOKUP(4413,$K$4:$AD$110,4,FALSE) -> 
A36: 4415 | B36: FRAKTUTGIFTER | F36: 33 | G36: 0 | H36: 0 | I36: =VLOOKUP(4415,$K$4:$AD$110,4,FALSE) -> 
A37: 4464 | B37: PROSJEKTERING KONTR.ANSV. | F37: 34 | G37: 0 | H37: 0 | I37: =VLOOKUP(4464,$K$4:$AD$110,4,FALSE) -> 
A38: 4479 | B38: RIGG OG DRIFT | F38: 35 | G38: 0 | H38: 0 | I38: =VLOOKUP(4479,$K$4:$AD$110,4,FALSE) -> 
A39: TIMEVERK | F39: 36
A40: 5.1 | B40: PROSJEKTERING | F40: 37 | G40: 0 | H40: =COUNT(I40) -> 0 | I40: =VLOOKUP("3.1 Prosjektering",$L$4:$AB$70,3,FALSE) -> 
A41: 6.1 | B41: RIGG OG DRIFT | F41: 38 | G41: 0 | H41: 0 | I41: =VLOOKUP("6.1 Rigg og drift",$L$4:$AB$70,3,FALSE) -> 
A42: 6.2 | B42: GRUNN- OG TOMTEARBEIDER | F42: 39 | G42: 0 | H42: 0 | I42: =VLOOKUP("6.2 Grunn- og tomtearbeider",$L$4:$AB$70,3,FALSE) -> 
A43: 6.3 | B43: GRUNNMUR | F43: 40 | G43: 0 | H43: 0 | I43: =VLOOKUP("6.3 Grunnmur",$L$4:$AB$70,3,FALSE) -> 
A44: 6.4 | B44: TETT RÅBYGG | F44: 41 | G44: =IF(H44=1,I44,) -> 0 | H44: 0 | I44: =VLOOKUP("6.4 Tett råbygg",$L$4:$AB$70,3,FALSE) -> 
A45: 6.5 | B45: FASADE | F45: 42 | G45: =IF(H45=1,I45,) -> 0 | H45: 0 | I45: =VLOOKUP("6.5 Fasade",$L$4:$AB$70,3,FALSE) -> 
A46: 6.6 | B46: KLART FOR RØR OG EL | F46: 43 | G46: =IF(H46=1,I46,) -> 0 | H46: 0 | I46: =VLOOKUP("6.6 Klart for rør og EL",$L$4:$AB$70,3,FALSE) -> 
A47: 6.7 | B47: FERDIGSTILLELSE | F47: 44 | G47: =IF(H47=1,I47,) -> 0 | H47: 0 | I47: =VLOOKUP("6.7 Ferdigstillelse",$L$4:$AB$70,3,FALSE) -> 
F48: 45
A49: Underentreprenører | F49: 46
A50: 4511 | B50: GRUNNARBEIDER | F50: 47 | G50: =IF(H50=1,I50,) -> 0 | H50: =COUNT(I50) -> 0 | I50: =VLOOKUP(4511,$K$4:$AD$110,4,FALSE) -> 
A51: 4512 | B51: MUR OG BETONGARBEIDER | F51: 48 | G51: 0 | H51: 0 | I51: =VLOOKUP(4512,$K$4:$AD$110,4,FALSE) -> 
A52: 4513 | B52: MUR OG PUSSARBEIDER | F52: 49 | G52: 0 | H52: 0 | I52: =VLOOKUP(4513,$K$4:$AD$110,4,FALSE) -> 
A53: 4514 | B53: ELEMENTLEVERANSE | F53: 50 | G53: 0 | H53: 0 | I53: =VLOOKUP(4514,$K$4:$AD$110,4,FALSE) -> 
A54: 4515 | B54: FRAKT/KRANING AV ELEMENTER | F54: 51 | G54: 0 | H54: 0 | I54: =VLOOKUP(4515,$K$4:$AD$110,4,FALSE) -> 
A55: 4516 | B55: TØMRER/BYGGMESTER | F55: 52 | G55: 0 | H55: 0 | I55: =VLOOKUP(4516,$K$4:$AD$110,4,FALSE) -> 
A56: 4517 | B56: TAKTEKKERARBEIDER | F56: 53 | G56: 0 | H56: 0 | I56: =VLOOKUP(4517,$K$4:$AD$110,4,FALSE) -> 
A57: 4518 | B57: INNREDNINGSPAKKE (Kjøkken, Bad og Garderobe) | F57: 54 | G57: 0 | H57: 0 | I57: =VLOOKUP(4518,$K$4:$AD$110,4,FALSE) -> 
A58: 4519 | B58: INNVENDIGE TRAPPER | F58: 55 | G58: =IF(H58=1,I58,) -> 0 | H58: =COUNT(I58) -> 0 | I58: =VLOOKUP(4519,$K$4:$AD$110,4,FALSE) -> 
A59: 4521 | B59: UTVENDIGE TRAPPER | F59: 56 | G59: 0 | H59: 0 | I59: =VLOOKUP(4521,$K$4:$AD$110,4,FALSE) -> 
A60: 4531 | B60: SANITÆRE INSTALLASJONER | F60: 57 | G60: 0 | H60: 0 | I60: =VLOOKUP(4531,$K$4:$AD$110,4,FALSE) -> 
A61: 4532 | B61: OPPVARMINGSSYSTEMER | F61: 58 | G61: 0 | H61: 0 | I61: =VLOOKUP(4532,$K$4:$AD$110,4,FALSE) -> 
A62: 4541 | B62: ELEKTRISKE INSTALLASJONER | F62: 59 | G62: 0 | H62: 0 | I62: =VLOOKUP(4541,$K$4:$AD$110,4,FALSE) -> 
A63: 4560 | B63: SIKKERHETSINSTALLASJONER | F63: 60 | G63: 0 | H63: 0 | I63: =VLOOKUP(4560,$K$4:$AD$110,4,FALSE) -> 
A64: 4562 | B64: HEIS- OG LØFTEINNRETNINGER | F64: 61 | G64: 0 | H64: 0 | I64: =VLOOKUP(4562,$K$4:$AD$110,4,FALSE) -> 
A65: 4570 | B65: FLISARBEIDER | F65: 62 | G65: 0 | H65: 0 | I65: =VLOOKUP(4570,$K$4:$AD$110,4,FALSE) -> 
A66: 4585 | B66: MALERARBEID | F66: 63 | G66: 0 | H66: 0 | I66: =VLOOKUP(4585,$K$4:$AD$110,4,FALSE) -> 
A67: 4590 | B67: BLIKKENSLAGERARBEIDER | F67: 64 | G67: 0 | H67: 0 | I67: =VLOOKUP(4590,$K$4:$AD$110,4,FALSE) -> 
A68: 4591 | B68: GLASSARBEIDER | F68: 65 | G68: 0 | H68: 0 | I68: =VLOOKUP(4591,$K$4:$AD$110,4,FALSE) -> 
A69: 4592 | B69: STÅLARBEIDER | F69: 66 | G69: 0 | H69: 0 | I69: =VLOOKUP(4592,$K$4:$AD$110,4,FALSE) -> 
A70: 45__ | F70: 67 | G70: 0 | H70: 0 | I70: =VLOOKUP("45__ ",$K$4:$AD$110,4,FALSE) -> 
F72: Sum Varer | G72: =SUM(G4:G38) -> 0
F73: Sum Timelønn | G73: =SUM(G44:G47) -> 0
F74: Sum UE | G74: =SUM(G50:G70) -> 0
F75: Total | G75: =SUM(G72:G74) -> 0

Sheet Tabell (hidden)
A1: Materialer | G1: 1 | H1: 2 | I1: 3 | J1: 4 | K1: 5 | L1: 6 | M1: 7 | N1: 8 | O1: 9 | P1: 10 | Q1: 11 | R1: 12 | S1: 13 | T1: 14 | U1: 15 | V1: 16 | W1: 17 | X1: 18 | Y1: 19 | Z1: 20 | AA1: 21 | AB1: 22 | AC1: 23 | AD1: 24 | AE1: 25 | AF1: 26 | AG1: 27 | AH1: 28 | AI1: 29 | AJ1: 30 | AK1: 31 | AL1: 32 | AM1: 33 | AN1: 34 | AO1: 35 | AP1: 36 | AQ1: 37 | AR1: 38 | AS1: 39 | AT1: 40 | AU1: 41 | AV1: 42 | AW1: 43 | AX1: 44 | AY1: 45 | AZ1: 46 | BA1: 47
A2: MATERIALER | G2: =B80 -> Velg garasjetype | I2: =B82 -> GA 101 S-W - Enkel garasje | J2: =B83 -> GA 102 S-W - Enkel garasje | K2: =B84 -> GA 103 V-W - Enkel garasje | L2: =B85 -> GA 104 HV-W - Enkel garasje | M2: =B86 -> GA 106 S-W - Enkel garasje | N2: =B87 -> GA 107 S-W - Enkel carport | O2: =B88 -> GA 108 S-W - Enkel garasje | P2: =B89 -> GA 109 S-W - Enkel garasje | Q2: =B90 -> GA 111 F - Enkel carport | R2: =B91 -> GA 112 F - Enkel garasje | S2: =$B92 -> GA 201 S-W - Dobbel garasje | T2: =$B93 -> GA 202 S-W - Dobbel garasje | U2: =$B94 -> GA 203 V-W - Dobbel garasje | V2: =$B95 -> GA 204 HV-W - Dobbel garasje | W2: =$B96 -> GA 206 S-W - Dobbel garasje | X2: =$B97 -> GA 207 P - Enkel garasje m/ carpor | Y2: =$B98 -> GA 208 S-W - Dobbel garasje | Z2: =$B99 -> GA 209 S-W - Dobbel garasje | AA2: =$B100 -> GA 211 F - Dobbel garasje | AB2: =$B101 -> GA 301 S-W - Enkel garasje m/bod | AC2: =$B102 -> GA 302 S-W - Enkel garasje m/bod | AD2: =$B103 -> GA 303 V-W - Enkel garasje m/bod | AE2: =$B104 -> GA 305 P - Enkel garasje m/bod | AF2: =$B105 -> GA 307 P - Enkel garasje m/bod | AG2: =$B106 -> GA 308 F - Dobbel garasje m/ bod | AH2: =$B107 -> GA 309 P - Carport m/ bod | AI2: =$B108 -> GA 310 F - Carport m/ bod | AJ2: =$B109 -> GA 311 F - Carport m/ bod | AK2: =$B110 -> GA 401 S-A - Dobbel garasje m/ hems | AL2: =$B111 -> GA 402 S-A - Dobbel garasje m/ hems | AM2: =$B112 -> GA 403 S-A - Dobbel garasje m/ hems | AN2: =$B113 -> GA 404 HV-A - Dobbel garasje m/ hems | AO2: =$B114 -> GA 405 S-A - Dobbel garasje m/ hems | AP2: =$B115 -> 0 | AQ2: =$B116 -> 0 | AR2: =$B117 -> 0 | AS2: =$B118 -> 0 | AT2: =$B119 -> 0 | AU2: =$B120 -> 0 | AV2: =$B121 -> 0 | AW2: =$B122 -> 0 | AX2: =$B123 -> 0 | AY2: =$B124 -> 0 | AZ2: =$B125 -> 0 | BA2: 34 | BB2: 27 | BI2: 51
A3: 4004 | B3: YTTERDØRER | F3: 1 | G3: 0 | I3: 0 | J3: 0 | K3: 0 | L3: 0 | M3: 5287.26 | N3: 0 | O3: 0 | P3: 0 | Q3: 0 | R3: 5287.26 | S3: 0 | T3: 0 | U3: 0 | V3: 0 | W3: 5287.26 | X3: 0 | Y3: 0 | Z3: 0 | AA3: 5287.26 | AB3: 5287.26 | AC3: 5287.26 | AD3: 0 | AE3: 5287.26 | AF3: 5287.26 | AG3: 5287.26 | AH3: 17542.52 | AI3: 5287.26 | AJ3: 5287.26 | AK3: 0 | AL3: 5287.26 | AM3: 0 | AN3: 5287.26 | AO3: 5287.26
A4: 4010 | B4: BYGNINGSPLATER, | F4: 2 | G4: 0 | I4: 2213.66 | J4: 2495.86 | K4: 2527.21 | L4: 2709.07 | M4: 3474.13 | N4: 2477.04 | O4: 3367.53 | P4: 2615.01 | Q4: 10583.77 | R4: 10909.92 | S4: 3304.82 | T4: 2922.29 | U4: 4333.26 | V4: 3756.33 | W4: 4935.28 | X4: 3831.58 | Y4: 4540.2 | Z4: 3831.58 | AA4: 13251.01 | AB4: 3855.05 | AC4: 4470.56 | AD4: 4783.6 | AE4: 4164.2 | AF4: 3587.02 | AG4: 15171.74 | AH4: 2856.27 | AI4: 12762.26 | AJ4: 11536.04 | AK4: 7306.96 | AL4: 11074.86 | AM4: 7959.28 | AN4: 8914.89 | AO4: 12475.82
A5: 4011 | B5: PAPP, FOLIE OG MEMBRAN | F5: 3 | G5: 0 | I5: 461.59 | J5: 461.59 | K5: 461.59 | L5: 461.59 | M5: 692.5 | N5: 599.49 | O5: 527.92 | P5: 494.76 | Q5: 4963.05 | R5: 6858.58 | S5: 519.63 | T5: 519.63 | U5: 550.04 | V5: 519.63 | W5: 644.01 | X5: 527.92 | Y5: 580.44 | Z5: 555.56 | AA5: 9368.65 | AB5: 677.15 | AC5: 743.46 | AD5: 721.37 | AE5: 749 | AF5: 668.85 | AG5: 10569.86 | AH5: 566.6 | AI5: 6363.42 | AJ5: 6262.09 | AK5: 522.4 | AL5: 809.8 | AM5: 508.58 | AN5: 624.66 | AO5: 1011.56
A6: 4012 | B6: SPIKER, SKRUER, LIM, BESL | F6: 4 | G6: 0 | I6: 8955.94 | J6: 9107.98 | K6: 8762.91 | L6: 9133.16 | M6: 11592.07 | N6: 6395.23 | O6: 8964.77 | P6: 5911.34 | Q6: 5668.04 | R6: 7007.36 | S6: 10740.28 | T6: 10601.04 | U6: 11513.08 | V6: 11129.69 | W6: 12987.39 | X6: 11940.14 | Y6: 12758.72 | Z6: 7036.81 | AA6: 7146.16 | AB6: 10730.52 | AC6: 10831.66 | AD6: 11672.6 | AE6: 11386.04 | AF6: 10677.59 | AG6: 8746.66 | AH6: 11633.76 | AI6: 6590.26 | AJ6: 7399.59 | AK6: 11501.11 | AL6: 14522.88 | AM6: 12112.89 | AN6: 12757.12 | AO6: 15113.51
A7: 4013 | B7: ISOLASJON | F7: 5 | G7: 0 | I7: 0 | J7: 0 | K7: 0 | L7: 0 | M7: 0 | N7: 0 | O7: 0 | P7: 0 | Q7: 0 | R7: 0 | S7: 0 | T7: 0 | U7: 0 | V7: 0 | W7: 0 | X7: 0 | Y7: 0 | Z7: 0 | AA7: 0 | AB7: 0 | AC7: 0 | AD7: 0 | AE7: 0 | AF7: 0 | AG7: 0 | AH7: 0 | AI7: 0 | AJ7: 0 | AK7: 0 | AL7: 0 | AM7: 0 | AN7: 0 | AO7: 0
A8: 4014 | B8: TAKTEKKING, STEIN/METALL | F8: 6 | G8: 0 | I8: 17346.52 | J8: 14279.89 | K8: 28317.19 | L8: 26406.67 | M8: 18738.38 | N8: 18435.69 | O8: 22293.45 | P8: 18496.59 | Q8: 0 | R8: 0 | S8: 20740.03 | T8: 19564.78 | U8: 39725.06 | V8: 26213.39 | W8: 27384.03 | X8: 20579.24 | Y8: 24714.02 | Z8: 20984.59 | AA8: 0 | AB8: 22499.37 | AC8: 21405.07 | AD8: 40735.76 | AE8: 18250.55 | AF8: 10176.21 | AG8: 0 | AH8: 12009.2 | AI8: 0 | AJ8: 0 | AK8: 21455.5 | AL8: 31689.8 | AM8: 23160.43 | AN8: 31572.71 | AO8: 31720.8
A9: 4015 | B9: TAKRENNER MED TILBEHØR | F9: 7 | G9: 0 | I9: 4029.01 | J9: 3163.28 | K9: 7261.37 | L9: 5295.23 | M9: 3625 | N9: 4279.1 | O9: 4529.2 | P9: 4048.23 | Q9: 1393.17 | R9: 1286.72 | S9: 4048.23 | T9: 4048.23 | U9: 8434.9 | V9: 5387.92 | W9: 4644.63 | X9: 4067.48 | Y9: 4548.44 | Z9: 4067.48 | AA9: 1819.02 | AB9: 4760.05 | AC9: 4298.33 | AD9: 8608.04 | AE9: 3817.38 | AF9: 2293.45 | AG9: 1925.49 | AH9: 1616.67 | AI9: 1410.92 | AJ9: 1410.92 | AK9: 4048.23 | AL9: 5221.77 | AM9: 4737.32 | AN9: 5702.73 | AO9: 4952.42
A10: 4017 | B10: BRANNVARSLER/SLUKKER | F10: 8 | G10: 0 | I10: 0 | J10: 0 | K10: 0 | L10: 0 | M10: 0 | N10: 0 | O10: 0 | P10: 0 | Q10: 0 | R10: 0 | S10: 0 | T10: 0 | U10: 0 | V10: 0 | W10: 0 | X10: 0 | Y10: 0 | Z10: 0 | AA10: 0 | AB10: 0 | AC10: 0 | AD10: 0 | AE10: 0 | AF10: 0 | AG10: 0 | AH10: 0 | AI10: 0 | AJ10: 0 | AK10: 0 | AL10: 0 | AM10: 0 | AN10: 0 | AO10: 0
A11: 4020 | B11: STÅLPROFILER | F11: 9 | G11: 0 | I11: 0 | J11: 0 | K11: 0 | L11: 0 | M11: 0 | N11: 0 | O11: 0 | P11: 0 | Q11: 0 | R11: 240.46 | S11: 0 | T11: 0 | U11: 0 | V11: 0 | W11: 0 | X11: 0 | Y11: 0 | Z11: 0 | AA11: 31105.62 | AB11: 0 | AC11: 0 | AD11: 0 | AE11: 0 | AF11: 0 | AG11: 23003.14 | AH11: 0 | AI11: 0 | AJ11: 0 | AK11: 0 | AL11: 0 | AM11: 0 | AN11: 0 | AO11: 0
A12: 4022 | B12: TAKVINDUER | F12: 10 | G12: 0 | I12: 0 | J12: 0 | K12: 0 | L12: 0 | M12: 0 | N12: 0 | O12: 0 | P12: 0 | Q12: 0 | R12: 0 | S12: 0 | T12: 0 | U12: 0 | V12: 0 | W12: 0 | X12: 0 | Y12: 0 | Z12: 0 | AA12: 0 | AB12: 0 | AC12: 0 | AD12: 0 | AE12: 0 | AF12: 0 | AG12: 0 | AH12: 0 | AI12: 0 | AJ12: 0 | AK12: 0 | AL12: 0 | AM12: 0 | AN12: 0 | AO12: 0
A13: 4023 | B13: OVN, PEIS, STÅLPIPE | F13: 11 | G13: 0 | I13: 0 | J13: 0 | K13: 0 | L13: 0 | M13: 0 | N13: 0 | O13: 0 | P13: 0 | Q13: 0 | R13: 0 | S13: 0 | T13: 0 | U13: 0 | V13: 0 | W13: 0 | X13: 0 | Y13: 0 | Z13: 0 | AA13: 0 | AB13: 0 | AC13: 0 | AD13: 0 | AE13: 0 | AF13: 0 | AG13: 0 | AH13: 0 | AI13: 0 | AJ13: 0 | AK13: 0 | AL13: 0 | AM13: 0 | AN13: 0 | AO13: 0
A14: 4024 | B14: BESLAG | F14: 12 | G14: 0 | I14: 0 | J14: 0 | K14: 0 | L14: 0 | M14: 0 | N14: 0 | O14: 0 | P14: 0 | Q14: 0 | R14: 0 | S14: 0 | T14: 0 | U14: 0 | V14: 0 | W14: 0 | X14: 573.24 | Y14: 0 | Z14: 0 | AA14: 0 | AB14: 0 | AC14: 0 | AD14: 0 | AE14: 515.92 | AF14: 0 | AG14: 0 | AH14: 0 | AI14: 0 | AJ14: 0 | AK14: 0 | AL14: 0 | AM14: 286.62 | AN14: 0 | AO14: 0
A15: 4025 | B15: INNVENDIGE DØRER | F15: 13 | G15: 0 | I15: 0 | J15: 0 | K15: 0 | L15: 0 | M15: 0 | N15: 0 | O15: 0 | P15: 0 | Q15: 0 | R15: 0 | S15: 0 | T15: 0 | U15: 0 | V15: 0 | W15: 0 | X15: 0 | Y15: 0 | Z15: 0 | AA15: 0 | AB15: 0 | AC15: 0 | AD15: 0 | AE15: 0 | AF15: 0 | AG15: 2316.38 | AH15: 0 | AI15: 0 | AJ15: 0 | AK15: 0 | AL15: 0 | AM15: 0 | AN15: 0 | AO15: 0
A16: 4026 | B16: GLASS OG METALLPROFILER | F16: 14 | G16: 0 | I16: 0 | J16: 0 | K16: 0 | L16: 0 | M16: 0 | N16: 0 | O16: 0 | P16: 0 | Q16: 0 | R16: 0 | S16: 0 | T16: 0 | U16: 0 | V16: 0 | W16: 0 | X16: 0 | Y16: 0 | Z16: 0 | AA16: 0 | AB16: 0 | AC16: 0 | AD16: 0 | AE16: 0 | AF16: 0 | AG16: 0 | AH16: 0 | AI16: 0 | AJ16: 0 | AK16: 0 | AL16: 0 | AM16: 0 | AN16: 0 | AO16: 0
A17: 4029 | B17: GARASJEPORTER | F17: 15 | G17: 0 | I17: 11532.42 | J17: 11532.42 | K17: 11532.42 | L17: 11532.42 | M17: 11532.42 | N17: 0 | O17: 11532.42 | P17: 11532.42 | Q17: 0 | R17: 12902.27 | S17: 23064.84 | T17: 23064.84 | U17: 23064.84 | V17: 23064.84 | W17: 23064.84 | X17: 23064.84 | Y17: 20545.12 | Z17: 23064.84 | AA17: 20595.1 | AB17: 11532.42 | AC17: 11532.42 | AD17: 11532.42 | AE17: 11532.42 | AF17: 12902.27 | AG17: 20595.1 | AH17: 0 | AI17: 0 | AJ17: 0 | AK17: 23064.84 | AL17: 23064.84 | AM17: 20088.54 | AN17: 23064.84 | AO17: 11532.42
A18: 4030 | B18: LIMTRE OG KERTO | F18: 16 | G18: 0 | I18: 0 | J18: 0 | K18: 0 | L18: 0 | M18: 1767 | N18: 10642.22 | O18: 0 | P18: 0 | Q18: 9432.09 | R18: 4464.48 | S18: 0 | T18: 2499.62 | U18: 2588.89 | V18: 0 | W18: 0 | X18: 4725.37 | Y18: 0 | Z18: 0 | AA18: 3381.12 | AB18: 0 | AC18: 1339.07 | AD18: 2873.92 | AE18: 0 | AF18: 0 | AG18: 4129.01 | AH18: 6836.29 | AI18: 16450.7 | AJ18: 0 | AK18: 0 | AL18: 0 | AM18: 0 | AN18: 0 | AO18: 8771.45
A19: 4031 | B19: TRELAST | F19: 17 | G19: 0 | I19: 19171.5 | J19: 20136.06 | K19: 18368.46 | L19: 19838.49 | M19: 27986.7 | N19: 13810.36 | O19: 35210.52 | P19: 9236.73 | Q19: 14977.06 | R19: 22865.59 | S19: 24175.49 | T19: 23665.44 | U19: 24151.52 | V19: 25449.16 | W19: 32580.35 | X19: 30562.96 | Y19: 44107.64 | Z19: 13464.77 | AA19: 24632.6 | AB19: 25507.21 | AC19: 28667.11 | AD19: 27524.82 | AE19: 29288.19 | AF19: 29225.98 | AG19: 33967.52 | AH19: 25278.94 | AI19: 21227.09 | AJ19: 27870.68 | AK19: 29329.78 | AL19: 35797.28 | AM19: 31245.65 | AN19: 31520.34 | AO19: 47162.92
A20: 4033 | B20: PARKETT OG GULVBORD | F20: 18 | G20: 0 | I20: 0 | J20: 0 | K20: 0 | L20: 0 | M20: 0 | N20: 0 | O20: 0 | P20: 0 | Q20: 0 | R20: 0 | S20: 0 | T20: 0 | U20: 0 | V20: 0 | W20: 0 | X20: 0 | Y20: 0 | Z20: 0 | AA20: 0 | AB20: 0 | AC20: 0 | AD20: 0 | AE20: 0 | AF20: 0 | AG20: 0 | AH20: 0 | AI20: 0 | AJ20: 0 | AK20: 0 | AL20: 0 | AM20: 0 | AN20: 0 | AO20: 0
A21: 4034 | B21: LISTVERK | F21: 19 | G21: 0 | I21: 0 | J21: 0 | K21: 0 | L21: 0 | M21: 0 | N21: 0 | O21: 0 | P21: 0 | Q21: 0 | R21: 0 | S21: 0 | T21: 0 | U21: 0 | V21: 0 | W21: 0 | X21: 0 | Y21: 0 | Z21: 0 | AA21: 0 | AB21: 0 | AC21: 0 | AD21: 0 | AE21: 0 | AF21: 0 | AG21: 0 | AH21: 0 | AI21: 0 | AJ21: 0 | AK21: 0 | AL21: 0 | AM21: 0 | AN21: 0 | AO21: 0
A22: 4049 | B22: STØVAVSUG | F22: 20 | G22: 0 | I22: 0 | J22: 0 | K22: 0 | L22: 0 | M22: 0 | N22: 0 | O22: 0 | P22: 0 | Q22: 0 | R22: 0 | S22: 0 | T22: 0 | U22: 0 | V22: 0 | W22: 0 | X22: 0 | Y22: 0 | Z22: 0 | AA22: 0 | AB22: 0 | AC22: 0 | AD22: 0 | AE22: 0 | AF22: 0 | AG22: 0 | AH22: 0 | AI22: 0 | AJ22: 0 | AK22: 0 | AL22: 0 | AM22: 0 | AN22: 0 | AO22: 0
A23: ORDRESTYRTE LEVERANSER | F23: 21 | G23: 0
A24: 4106 | B24: TAKSTOLER/TAKVERK | F24: 22 | G24: 0 | I24: 11520 | J24: 20400 | K24: 18487 | L24: 16640 | M24: 20095 | N24: 12160 | O24: 16680 | P24: 13440 | Q24: 8445 | R24: 8445 | S24: 14506 | T24: 30431 | U24: 27458 | V24: 21760 | W24: 28800 | X24: 13909 | Y24: 21120 | Z24: 18560 | AA24: 8145 | AB24: 14720 | AC24: 15755 | AD24: 24200 | AE24: 10685 | AF24: 12639 | AG24: 8045 | AH24: 6674 | AI24: 5548 | AJ24: 5018 | AK24: 20240 | AL24: 28158 | AM24: 35198 | AN24: 27518 | AO24: 39898
A25: 4107 | B25: VINDUER OG BALKONGDØRER | F25: 23 | G25: 0 | I25: 2599.1 | J25: 2599.1 | K25: 2599.1 | L25: 2599.1 | M25: 3898.65 | N25: 0 | O25: 2599.1 | P25: 2599.1 | Q25: 0 | R25: 1299.55 | S25: 2599.1 | T25: 2599.1 | U25: 2599.1 | V25: 2599.1 | W25: 3898.65 | X25: 5047.6 | Y25: 2599.1 | Z25: 2599.1 | AA25: 2377.67 | AB25: 2599.1 | AC25: 5198.2 | AD25: 2599.1 | AE25: 10265.47 | AF25: 5600 | AG25: 4755.34 | AH25: 6880 | AI25: 0 | AJ25: 0 | AK25: 8036.1 | AL25: 8036.1 | AM25: 13064.6 | AN25: 3898.65 | AO25: 10635.2
A26: 4109 | B26: INNVENDIGE TRAPPER | F26: 24 | G26: 0 | I26: 0 | J26: 0 | K26: 0 | L26: 0 | M26: 0 | N26: 0 | O26: 0 | P26: 0 | Q26: 0 | R26: 0 | S26: 0 | T26: 0 | U26: 0 | V26: 0 | W26: 0 | X26: 0 | Y26: 0 | Z26: 0 | AA26: 0 | AB26: 0 | AC26: 0 | AD26: 0 | AE26: 0 | AF26: 0 | AG26: 0 | AH26: 0 | AI26: 0 | AJ26: 0 | AK26: 0 | AL26: 0 | AM26: 0 | AN26: 0 | AO26: 0
A27: 4127 | B27: KONSTRUKSJONSPAKKE VEGG/BJELKELAG/TAK | F27: 25 | G27: 0 | I27: 0 | J27: 0 | K27: 0 | L27: 0 | M27: 0 | N27: 0 | O27: 0 | P27: 0 | Q27: 0 | R27: 0 | S27: 0 | T27: 0 | U27: 0 | V27: 0 | W27: 0 | X27: 0 | Y27: 0 | Z27: 0 | AA27: 0 | AB27: 0 | AC27: 0 | AD27: 0 | AE27: 0 | AF27: 0 | AG27: 0 | AH27: 0 | AI27: 0 | AJ27: 0 | AK27: 0 | AL27: 0 | AM27: 0 | AN27: 0 | AO27: 0
A28: 4132 | B28: I-TREBJELKER | F28: 26 | G28: 0 | I28: 0 | J28: 0 | K28: 0 | L28: 0 | M28: 0 | N28: 0 | O28: 0 | P28: 0 | Q28: 0 | R28: 0 | S28: 0 | T28: 0 | U28: 0 | V28: 0 | W28: 0 | X28: 0 | Y28: 0 | Z28: 0 | AA28: 0 | AB28: 0 | AC28: 0 | AD28: 0 | AE28: 0 | AF28: 0 | AG28: 0 | AH28: 0 | AI28: 0 | AJ28: 0 | AK28: 0 | AL28: 0 | AM28: 0 | AN28: 0 | AO28: 0
A29: 4148 | B29: VENTILASJON | F29: 27 | G29: 0 | I29: 0 | J29: 0 | K29: 0 | L29: 0 | M29: 0 | N29: 0 | O29: 0 | P29: 0 | Q29: 0 | R29: 0 | S29: 0 | T29: 0 | U29: 0 | V29: 0 | W29: 0 | X29: 0 | Y29: 0 | Z29: 0 | AA29: 0 | AB29: 0 | AC29: 0 | AD29: 0 | AE29: 0 | AF29: 0 | AG29: 0 | AH29: 0 | AI29: 0 | AJ29: 0 | AK29: 0 | AL29: 0 | AM29: 0 | AN29: 0 | AO29: 0
A30: 4150 | B30: GARDEROBEINNREDNING | F30: 28 | G30: 0 | I30: 0 | J30: 0 | K30: 0 | L30: 0 | M30: 0 | N30: 0 | O30: 0 | P30: 0 | Q30: 0 | R30: 0 | S30: 0 | T30: 0 | U30: 0 | V30: 0 | W30: 0 | X30: 0 | Y30: 0 | Z30: 0 | AA30: 0 | AB30: 0 | AC30: 0 | AD30: 0 | AE30: 0 | AF30: 0 | AG30: 0 | AH30: 0 | AI30: 0 | AJ30: 0 | AK30: 0 | AL30: 0 | AM30: 0 | AN30: 0 | AO30: 0
A31: 4151 | B31: KJØKKENINNREDNING | F31: 29 | G31: 0 | I31: 0 | J31: 0 | K31: 0 | L31: 0 | M31: 0 | N31: 0 | O31: 0 | P31: 0 | Q31: 0 | R31: 0 | S31: 0 | T31: 0 | U31: 0 | V31: 0 | W31: 0 | X31: 0 | Y31: 0 | Z31: 0 | AA31: 0 | AB31: 0 | AC31: 0 | AD31: 0 | AE31: 0 | AF31: 0 | AG31: 0 | AH31: 0 | AI31: 0 | AJ31: 0 | AK31: 0 | AL31: 0 | AM31: 0 | AN31: 0 | AO31: 0
A32: 4152 | B32: BADEROMSINNREDNING | F32: 30 | G32: 0 | I32: 0 | J32: 0 | K32: 0 | L32: 0 | M32: 0 | N32: 0 | O32: 0 | P32: 0 | Q32: 0 | R32: 0 | S32: 0 | T32: 0 | U32: 0 | V32: 0 | W32: 0 | X32: 0 | Y32: 0 | Z32: 0 | AA32: 0 | AB32: 0 | AC32: 0 | AD32: 0 | AE32: 0 | AF32: 0 | AG32: 0 | AH32: 0 | AI32: 0 | AJ32: 0 | AK32: 0 | AL32: 0 | AM32: 0 | AN32: 0 | AO32: 0
A33: ANNET | F33: 31 | G33: 0
A34: 4413 | B34: FORSIKRINGER /GARANTIER | F34: 32 | G34: 0 | I34: 0 | J34: 0 | K34: 0 | L34: 0 | M34: 0 | N34: 0 | O34: 0 | P34: 0 | Q34: 0 | R34: 0 | S34: 0 | T34: 0 | U34: 0 | V34: 0 | W34: 0 | X34: 0 | Y34: 0 | Z34: 0 | AA34: 0 | AB34: 0 | AC34: 0 | AD34: 0 | AE34: 0 | AF34: 0 | AG34: 0 | AH34: 0 | AI34: 0 | AJ34: 0 | AK34: 0 | AL34: 0 | AM34: 0 | AN34: 0 | AO34: 0
A35: 4415 | B35: FRAKTUTGIFTER | F35: 33 | G35: 0 | I35: 0 | J35: 0 | K35: 0 | L35: 0 | M35: 0 | N35: 0 | O35: 0 | P35: 0 | Q35: 0 | R35: 0 | S35: 0 | T35: 0 | U35: 0 | V35: 0 | W35: 0 | X35: 0 | Y35: 0 | Z35: 0 | AA35: 0 | AB35: 0 | AC35: 0 | AD35: 0 | AE35: 0 | AF35: 0 | AG35: 0 | AH35: 0 | AI35: 0 | AJ35: 0 | AK35: 0 | AL35: 0 | AM35: 0 | AN35: 0 | AO35: 0
A36: 4464 | B36: PROSJEKTERING KONTR.ANSV. | F36: 34 | G36: 0 | I36: 0 | J36: 0 | K36: 0 | L36: 0 | M36: 0 | N36: 0 | O36: 0 | P36: 0 | Q36: 0 | R36: 0 | S36: 0 | T36: 0 | U36: 0 | V36: 0 | W36: 0 | X36: 0 | Y36: 0 | Z36: 0 | AA36: 0 | AB36: 0 | AC36: 0 | AD36: 0 | AE36: 0 | AF36: 0 | AG36: 0 | AH36: 0 | AI36: 0 | AJ36: 0 | AK36: 0 | AL36: 0 | AM36: 0 | AN36: 0 | AO36: 0
A37: 4479 | B37: RIGG OG DRIFT | F37: 35 | G37: 0 | I37: 0 | J37: 0 | K37: 0 | L37: 0 | M37: 0 | N37: 0 | O37: 0 | P37: 0 | Q37: 0 | R37: 0 | S37: 0 | T37: 0 | U37: 0 | V37: 0 | W37: 0 | X37: 0 | Y37: 0 | Z37: 0 | AA37: 0 | AB37: 0 | AC37: 0 | AD37: 0 | AE37: 0 | AF37: 0 | AG37: 0 | AH37: 0 | AI37: 0 | AJ37: 0 | AK37: 0 | AL37: 0 | AM37: 0 | AN37: 0 | AO37: 0
A38: TIMEVERK | F38: 36 | G38: 0
A39: 5.1 | B39: PROSJEKTERING | F39: 37 | G39: 0 | I39: 0 | J39: 0 | K39: 0 | L39: 0 | M39: 0 | N39: 0 | O39: 0 | P39: 0 | Q39: 0 | R39: 0 | S39: 0 | T39: 0 | U39: 0 | V39: 0 | W39: 0 | X39: 0 | Y39: 0 | Z39: 0 | AA39: 0 | AB39: 0 | AC39: 0 | AD39: 0 | AE39: 0 | AF39: 0 | AG39: 0 | AH39: 0 | AI39: 0 | AJ39: 0 | AK39: 0 | AL39: 0 | AM39: 0 | AN39: 0 | AO39: 0
A40: 6.1 | B40: RIGG OG DRIFT | F40: 38 | G40: 0 | I40: 0 | J40: 0 | K40: 0 | L40: 0 | M40: 0 | N40: 0 | O40: 0 | P40: 0 | Q40: 0 | R40: 0 | S40: 0 | T40: 0 | U40: 0 | V40: 0 | W40: 0 | X40: 0 | Y40: 0 | Z40: 0 | AA40: 0 | AB40: 0 | AC40: 0 | AD40: 0 | AE40: 0 | AF40: 0 | AG40: 0 | AH40: 0 | AI40: 0 | AJ40: 0 | AK40: 0 | AL40: 0 | AM40: 0 | AN40: 0 | AO40: 0
A41: 6.2 | B41: GRUNN- OG TOMTEARBEIDER | F41: 39 | G41: 0 | I41: 0 | J41: 0 | K41: 0 | L41: 0 | M41: 0 | N41: 0 | O41: 0 | P41: 0 | Q41: 0 | R41: 0 | S41: 0 | T41: 0 | U41: 0 | V41: 0 | W41: 0 | X41: 0 | Y41: 0 | Z41: 0 | AA41: 0 | AB41: 0 | AC41: 0 | AD41: 0 | AE41: 0 | AF41: 0 | AG41: 0 | AH41: 0 | AI41: 0 | AJ41: 0 | AK41: 0 | AL41: 0 | AM41: 0 | AN41: 0 | AO41: 0
A42: 6.3 | B42: GRUNNMUR | F42: 40 | G42: 0 | I42: 0 | J42: 0 | K42: 0 | L42: 0 | M42: 0 | N42: 0 | O42: 0 | P42: 0 | Q42: 0 | R42: 0 | S42: 0 | T42: 0 | U42: 0 | V42: 0 | W42: 0 | X42: 0 | Y42: 0 | Z42: 0 | AA42: 0 | AB42: 0 | AC42: 0 | AD42: 0 | AE42: 0 | AF42: 0 | AG42: 0 | AH42: 0 | AI42: 0 | AJ42: 0 | AK42: 0 | AL42: 0 | AM42: 0 | AN42: 0 | AO42: 0
A43: 6.4 | B43: TETT RÅBYGG | F43: 41 | G43: 0 | I43: 13690.79 | J43: 14261.66 | K43: 13548.2 | L43: 14123.97 | M43: 18071.39 | N43: 9777.46 | O43: 16386.95 | P43: 10788.34 | Q43: 15194.8 | R43: 25898.27 | S43: 18864.64 | T43: 18689.2 | U43: 19787.63 | V43: 19796.58 | W43: 24074.36 | X43: 23198.64 | Y43: 19230.54 | Z43: 16011.26 | AA43: 30694.5 | AB43: 17729.86 | AC43: 18590.41 | AD43: 17717.5 | AE43: 15895.2 | AF43: 18705.17 | AG43: 34428.5 | AH43: 14041.91 | AI43: 18125.06 | AJ43: 19940.98 | AK43: 22869.22 | AL43: 27936.05 | AM43: 21263.87 | AN43: 25211.86 | AO43: 28739.71
A44: 6.5 | B44: FASADE | F44: 42 | G44: 0 | I44: 21084.06 | J44: 21074.05 | K44: 24185.59 | L44: 24474.13 | M44: 28026.29 | N44: 19229.48 | O44: 27370.96 | P44: 17095.2 | Q44: 8840.04 | R44: 17158.95 | S44: 26244.65 | T44: 25808.88 | U44: 32703.06 | V44: 27294.96 | W44: 33982.29 | X44: 32018.47 | Y44: 32791.39 | Z44: 21759.06 | AA44: 14275.17 | AB44: 26722.18 | AC44: 28509.71 | AD44: 34810.18 | AE44: 29743.21 | AF44: 32557.08 | AG44: 15031.18 | AH44: 30340.43 | AI44: 15288.96 | AJ44: 18731.72 | AK44: 29545 | AL44: 36110.17 | AM44: 30256.38 | AN44: 33989.62 | AO44: 45073.5
A45: 6.6 | B45: KLART FOR RØR OG EL | F45: 43 | G45: 0 | I45: 0 | J45: 0 | K45: 0 | L45: 0 | M45: 0 | N45: 0 | O45: 0 | P45: 0 | Q45: 0 | R45: 0 | S45: 0 | T45: 0 | U45: 0 | V45: 0 | W45: 0 | X45: 0 | Y45: 0 | Z45: 0 | AA45: 0 | AB45: 629.76 | AC45: 1007.62 | AD45: 755.71 | AE45: 2466.17 | AF45: 839.68 | AG45: 0 | AH45: 398.85 | AI45: 0 | AJ45: 0 | AK45: 0 | AL45: 1007.62 | AM45: 0 | AN45: 0 | AO45: 1049.6
A46: 6.7 | B46: FERDIGSTILLELSE | F46: 44 | G46: 0 | I46: 0 | J46: 0 | K46: 0 | L46: 0 | M46: 186.29 | N46: 0 | O46: 0 | P46: 0 | Q46: 0 | R46: 186.29 | S46: 0 | T46: 0 | U46: 0 | V46: 0 | W46: 186.29 | X46: 0 | Y46: 0 | Z46: 0 | AA46: 186.29 | AB46: 612.82 | AC46: 868.74 | AD46: 511.84 | AE46: 840.3 | AF46: 755 | AG46: 1452 | AH46: 270.14 | AI46: 186.29 | AJ46: 186.29 | AK46: 0 | AL46: 868.74 | AM46: 0 | AN46: 186.29 | AO46: 1045.38
F47: 45 | G47: 0
A48: Underentreprenører | F48: 46 | G48: 0
A49: 4511 | B49: GRUNNARBEIDER | F49: 47 | G49: 0 | I49: 0 | J49: 0 | K49: 0 | L49: 0 | M49: 0 | N49: 0 | O49: 0 | P49: 0 | Q49: 0 | R49: 0 | S49: 0 | T49: 0 | U49: 0 | V49: 0 | W49: 0 | X49: 0 | Y49: 0 | Z49: 0 | AA49: 0 | AB49: 0 | AC49: 0 | AD49: 0 | AE49: 0 | AF49: 0 | AG49: 0 | AH49: 0 | AI49: 0 | AJ49: 0 | AK49: 0 | AL49: 0 | AM49: 0 | AN49: 0 | AO49: 0
A50: 4512 | B50: MUR OG BETONGARBEIDER | F50: 48 | G50: 0 | I50: 0 | J50: 0 | K50: 0 | L50: 0 | M50: 0 | N50: 0 | O50: 0 | P50: 0 | Q50: 0 | R50: 0 | S50: 0 | T50: 0 | U50: 0 | V50: 0 | W50: 0 | X50: 0 | Y50: 0 | Z50: 0 | AA50: 0 | AB50: 0 | AC50: 0 | AD50: 0 | AE50: 0 | AF50: 0 | AG50: 0 | AH50: 0 | AI50: 0 | AJ50: 0 | AK50: 0 | AL50: 0 | AM50: 0 | AN50: 0 | AO50: 0
A51: 4513 | B51: MUR OG PUSSARBEIDER | F51: 49 | G51: 0 | I51: 0 | J51: 0 | K51: 0 | L51: 0 | M51: 0 | N51: 0 | O51: 0 | P51: 0 | Q51: 0 | R51: 0 | S51: 0 | T51: 0 | U51: 0 | V51: 0 | W51: 0 | X51: 0 | Y51: 0 | Z51: 0 | AA51: 0 | AB51: 0 | AC51: 0 | AD51: 0 | AE51: 0 | AF51: 0 | AG51: 0 | AH51: 0 | AI51: 0 | AJ51: 0 | AK51: 0 | AL51: 0 | AM51: 0 | AN51: 0 | AO51: 0
A52: 4514 | B52: ELEMENTLEVERANSE | F52: 50 | G52: 0 | I52: 0 | J52: 0 | K52: 0 | L52: 0 | M52: 0 | N52: 0 | O52: 0 | P52: 0 | Q52: 0 | R52: 0 | S52: 0 | T52: 0 | U52: 0 | V52: 0 | W52: 0 | X52: 0 | Y52: 0 | Z52: 0 | AA52: 0 | AB52: 0 | AC52: 0 | AD52: 0 | AE52: 0 | AF52: 0 | AG52: 0 | AH52: 0 | AI52: 0 | AJ52: 0 | AK52: 0 | AL52: 0 | AM52: 0 | AN52: 0 | AO52: 0
A53: 4515 | B53: FRAKT/KRANING AV ELEMENTER | F53: 51 | G53: 0 | I53: 0 | J53: 0 | K53: 0 | L53: 0 | M53: 0 | N53: 0 | O53: 0 | P53: 0 | Q53: 0 | R53: 0 | S53: 0 | T53: 0 | U53: 0 | V53: 0 | W53: 0 | X53: 0 | Y53: 0 | Z53: 0 | AA53: 0 | AB53: 0 | AC53: 0 | AD53: 0 | AE53: 0 | AF53: 0 | AG53: 0 | AH53: 0 | AI53: 0 | AJ53: 0 | AK53: 0 | AL53: 0 | AM53: 0 | AN53: 0 | AO53: 0
A54: 4516 | B54: TØMRER/BYGGMESTER | F54: 52 | G54: 0 | I54: 0 | J54: 0 | K54: 0 | L54: 0 | M54: 0 | N54: 0 | O54: 0 | P54: 0 | Q54: 0 | R54: 0 | S54: 0 | T54: 0 | U54: 0 | V54: 0 | W54: 0 | X54: 0 | Y54: 0 | Z54: 0 | AA54: 0 | AB54: 0 | AC54: 0 | AD54: 0 | AE54: 0 | AF54: 0 | AG54: 0 | AH54: 0 | AI54: 0 | AJ54: 0 | AK54: 0 | AL54: 0 | AM54: 0 | AN54: 0 | AO54: 0
A55: 4517 | B55: TAKTEKKERARBEIDER | F55: 53 | G55: 0 | I55: 0 | J55: 0 | K55: 0 | L55: 0 | M55: 0 | N55: 0 | O55: 0 | P55: 0 | Q55: 0 | R55: 0 | S55: 0 | T55: 0 | U55: 0 | V55: 0 | W55: 0 | X55: 0 | Y55: 0 | Z55: 0 | AA55: 0 | AB55: 0 | AC55: 0 | AD55: 0 | AE55: 0 | AF55: 0 | AG55: 0 | AH55: 0 | AI55: 0 | AJ55: 0 | AK55: 0 | AL55: 0 | AM55: 0 | AN55: 0 | AO55: 0
A56: 4518 | B56: INNREDNINGSPAKKE (Kjøkken, Bad og Garderobe) | F56: 54 | G56: 0 | I56: 0 | J56: 0 | K56: 0 | L56: 0 | M56: 0 | N56: 0 | O56: 0 | P56: 0 | Q56: 0 | R56: 0 | S56: 0 | T56: 0 | U56: 0 | V56: 0 | W56: 0 | X56: 0 | Y56: 0 | Z56: 0 | AA56: 0 | AB56: 0 | AC56: 0 | AD56: 0 | AE56: 0 | AF56: 0 | AG56: 0 | AH56: 0 | AI56: 0 | AJ56: 0 | AK56: 0 | AL56: 0 | AM56: 0 | AN56: 0 | AO56: 0
A57: 4519 | B57: INNVENDIGE TRAPPER | F57: 55 | G57: 0 | I57: 0 | J57: 0 | K57: 0 | L57: 0 | M57: 0 | N57: 0 | O57: 0 | P57: 0 | Q57: 0 | R57: 0 | S57: 0 | T57: 0 | U57: 0 | V57: 0 | W57: 0 | X57: 0 | Y57: 0 | Z57: 0 | AA57: 0 | AB57: 0 | AC57: 0 | AD57: 0 | AE57: 0 | AF57: 0 | AG57: 0 | AH57: 0 | AI57: 0 | AJ57: 0 | AK57: 0 | AL57: 0 | AM57: 0 | AN57: 0 | AO57: 0
A58: 4521 | B58: UTVENDIGE TRAPPER | F58: 56 | G58: 0 | I58: 0 | J58: 0 | K58: 0 | L58: 0 | M58: 0 | N58: 0 | O58: 0 | P58: 0 | Q58: 0 | R58: 0 | S58: 0 | T58: 0 | U58: 0 | V58: 0 | W58: 0 | X58: 0 | Y58: 0 | Z58: 0 | AA58: 0 | AB58: 0 | AC58: 0 | AD58: 0 | AE58: 0 | AF58: 0 | AG58: 0 | AH58: 0 | AI58: 0 | AJ58: 0 | AK58: 0 | AL58: 0 | AM58: 0 | AN58: 0 | AO58: 0
A59: 4531 | B59: SANITÆRE INSTALLASJONER | F59: 57 | G59: 0 | I59: 0 | J59: 0 | K59: 0 | L59: 0 | M59: 0 | N59: 0 | O59: 0 | P59: 0 | Q59: 0 | R59: 0 | S59: 0 | T59: 0 | U59: 0 | V59: 0 | W59: 0 | X59: 0 | Y59: 0 | Z59: 0 | AA59: 0 | AB59: 0 | AC59: 0 | AD59: 0 | AE59: 0 | AF59: 0 | AG59: 0 | AH59: 0 | AI59: 0 | AJ59: 0 | AK59: 0 | AL59: 0 | AM59: 0 | AN59: 0 | AO59: 0
A60: 4532 | B60: OPPVARMINGSSYSTEMER | F60: 58 | G60: 0 | I60: 0 | J60: 0 | K60: 0 | L60: 0 | M60: 0 | N60: 0 | O60: 0 | P60: 0 | Q60: 0 | R60: 0 | S60: 0 | T60: 0 | U60: 0 | V60: 0 | W60: 0 | X60: 0 | Y60: 0 | Z60: 0 | AA60: 0 | AB60: 0 | AC60: 0 | AD60: 0 | AE60: 0 | AF60: 0 | AG60: 0 | AH60: 0 | AI60: 0 | AJ60: 0 | AK60: 0 | AL60: 0 | AM60: 0 | AN60: 0 | AO60: 0
A61: 4541 | B61: ELEKTRISKE INSTALLASJONER | F61: 59 | G61: 0 | I61: 0 | J61: 0 | K61: 0 | L61: 0 | M61: 0 | N61: 0 | O61: 0 | P61: 0 | Q61: 0 | R61: 0 | S61: 0 | T61: 0 | U61: 0 | V61: 0 | W61: 0 | X61: 0 | Y61: 0 | Z61: 0 | AA61: 0 | AB61: 0 | AC61: 0 | AD61: 0 | AE61: 0 | AF61: 0 | AG61: 0 | AH61: 0 | AI61: 0 | AJ61: 0 | AK61: 0 | AL61: 0 | AM61: 0 | AN61: 0 | AO61: 0
A62: 4560 | B62: SIKKERHETSINSTALLASJONER | F62: 60 | G62: 0 | I62: 0 | J62: 0 | K62: 0 | L62: 0 | M62: 0 | N62: 0 | O62: 0 | P62: 0 | Q62: 0 | R62: 0 | S62: 0 | T62: 0 | U62: 0 | V62: 0 | W62: 0 | X62: 0 | Y62: 0 | Z62: 0 | AA62: 0 | AB62: 0 | AC62: 0 | AD62: 0 | AE62: 0 | AF62: 0 | AG62: 0 | AH62: 0 | AI62: 0 | AJ62: 0 | AK62: 0 | AL62: 0 | AM62: 0 | AN62: 0 | AO62: 0
A63: 4562 | B63: HEIS- OG LØFTEINNRETNINGER | F63: 61 | G63: 0 | I63: 0 | J63: 0 | K63: 0 | L63: 0 | M63: 0 | N63: 0 | O63: 0 | P63: 0 | Q63: 0 | R63: 0 | S63: 0 | T63: 0 | U63: 0 | V63: 0 | W63: 0 | X63: 0 | Y63: 0 | Z63: 0 | AA63: 0 | AB63: 0 | AC63: 0 | AD63: 0 | AE63: 0 | AF63: 0 | AG63: 0 | AH63: 0 | AI63: 0 | AJ63: 0 | AK63: 0 | AL63: 0 | AM63: 0 | AN63: 0 | AO63: 0
A64: 4570 | B64: FLISARBEIDER | F64: 62 | G64: 0 | I64: 0 | J64: 0 | K64: 0 | L64: 0 | M64: 0 | N64: 0 | O64: 0 | P64: 0 | Q64: 0 | R64: 0 | S64: 0 | T64: 0 | U64: 0 | V64: 0 | W64: 0 | X64: 0 | Y64: 0 | Z64: 0 | AA64: 0 | AB64: 0 | AC64: 0 | AD64: 0 | AE64: 0 | AF64: 0 | AG64: 0 | AH64: 0 | AI64: 0 | AJ64: 0 | AK64: 0 | AL64: 0 | AM64: 0 | AN64: 0 | AO64: 0
A65: 4585 | B65: MALERARBEID | F65: 63 | G65: 0 | I65: 0 | J65: 0 | K65: 0 | L65: 0 | M65: 0 | N65: 0 | O65: 0 | P65: 0 | Q65: 0 | R65: 0 | S65: 0 | T65: 0 | U65: 0 | V65: 0 | W65: 0 | X65: 0 | Y65: 0 | Z65: 0 | AA65: 0 | AB65: 0 | AC65: 0 | AD65: 0 | AE65: 0 | AF65: 0 | AG65: 0 | AH65: 0 | AI65: 0 | AJ65: 0 | AK65: 0 | AL65: 0 | AM65: 0 | AN65: 0 | AO65: 0
A66: 4590 | B66: BLIKKENSLAGERARBEIDER | F66: 64 | G66: 0 | I66: 0 | J66: 0 | K66: 0 | L66: 0 | M66: 0 | N66: 0 | O66: 0 | P66: 0 | Q66: 5125 | R66: 26539.84 | S66: 0 | T66: 0 | U66: 0 | V66: 0 | W66: 0 | X66: 0 | Y66: 0 | Z66: 0 | AA66: 22392.99 | AB66: 0 | AC66: 0 | AD66: 0 | AE66: 0 | AF66: 0 | AG66: 24134.67 | AH66: 0 | AI66: 5100 | AJ66: 15592.16 | AK66: 0 | AL66: 0 | AM66: 0 | AN66: 0 | AO66: 0
A67: 4591 | B67: GLASSARBEIDER | F67: 65 | G67: 0 | I67: 0 | J67: 0 | K67: 0 | L67: 0 | M67: 0 | N67: 0 | O67: 0 | P67: 0 | Q67: 0 | R67: 0 | S67: 0 | T67: 0 | U67: 0 | V67: 0 | W67: 0 | X67: 0 | Y67: 0 | Z67: 0 | AA67: 0 | AB67: 0 | AC67: 0 | AD67: 0 | AE67: 0 | AF67: 0 | AG67: 0 | AH67: 0 | AI67: 0 | AJ67: 0 | AK67: 0 | AL67: 0 | AM67: 0 | AN67: 0 | AO67: 0
A68: 4592 | B68: STÅLARBEIDER | F68: 66 | G68: 0 | I68: 0 | J68: 0 | K68: 0 | L68: 0 | M68: 0 | N68: 0 | O68: 0 | P68: 0 | Q68: 0 | R68: 0 | S68: 0 | T68: 0 | U68: 0 | V68: 0 | W68: 0 | X68: 0 | Y68: 0 | Z68: 0 | AA68: 0 | AB68: 0 | AC68: 0 | AD68: 0 | AE68: 0 | AF68: 0 | AG68: 0 | AH68: 0 | AI68: 0 | AJ68: 0 | AK68: 0 | AL68: 0 | AM68: 0 | AN68: 0 | AO68: 0
A69: 45__ | F69: 67 | G69: 0 | I69: 0 | J69: 0 | K69: 0 | L69: 0 | M69: 0 | N69: 0 | O69: 0 | P69: 0 | Q69: 0 | R69: 0 | S69: 0 | T69: 0 | U69: 0 | V69: 0 | W69: 0 | X69: 0 | Y69: 0 | Z69: 0 | AA69: 0 | AB69: 0 | AC69: 0 | AD69: 0 | AE69: 0 | AF69: 0 | AG69: 0 | AH69: 0 | AI69: 0 | AJ69: 0 | AK69: 0 | AL69: 0 | AM69: 0 | AN69: 0 | AO69: 0
E70: BRA | F70: 68 | G70: 0 | I70: 19.8 | J70: 19.8 | K70: 19.8 | L70: 19.8 | M70: 30.6 | N70: 21.8 | O70: 25.6 | P70: 20.2 | Q70: 22.3 | R70: 25.6 | S70: 33.7 | T70: 33.7 | U70: 37.2 | V70: 33.7 | W70: 46.6 | X70: 25.6 | Y70: 37.2 | Z70: 33 | AA70: 37.2 | AB70: 30.1 | AC70: 36.7 | AD70: 34.5 | AE70: 33.1 | AF70: 28.4 | AG70: 45.4 | AH70: 35.9 | AI70: 25.5 | AJ70: 26.7 | AK70: 47 | AL70: 46.3 | AM70: 46.4 | AN70: 44.9 | AO70: 40.2
A80: 1 | B80: Velg garasjetype
A81: 2
A82: 3 | B82: GA 101 S-W - Enkel garasje
A83: 4 | B83: GA 102 S-W - Enkel garasje
A84: 5 | B84: GA 103 V-W - Enkel garasje
A85: 6 | B85: GA 104 HV-W - Enkel garasje
A86: 7 | B86: GA 106 S-W - Enkel garasje
A87: 8 | B87: GA 107 S-W - Enkel carport
A88: 9 | B88: GA 108 S-W - Enkel garasje
A89: 10 | B89: GA 109 S-W - Enkel garasje
A90: 11 | B90: GA 111 F - Enkel carport
A91: 12 | B91: GA 112 F - Enkel garasje
A92: 13 | B92: GA 201 S-W - Dobbel garasje
A93: 14 | B93: GA 202 S-W - Dobbel garasje
A94: 15 | B94: GA 203 V-W - Dobbel garasje
A95: 16 | B95: GA 204 HV-W - Dobbel garasje
A96: 17 | B96: GA 206 S-W - Dobbel garasje
A97: 18 | B97: GA 207 P - Enkel garasje m/ carpor
A98: 19 | B98: GA 208 S-W - Dobbel garasje
A99: 20 | B99: GA 209 S-W - Dobbel garasje
A100: 21 | B100: GA 211 F - Dobbel garasje
A101: 22 | B101: GA 301 S-W - Enkel garasje m/bod
A102: 23 | B102: GA 302 S-W - Enkel garasje m/bod
A103: 24 | B103: GA 303 V-W - Enkel garasje m/bod
A104: 25 | B104: GA 305 P - Enkel garasje m/bod
A105: 26 | B105: GA 307 P - Enkel garasje m/bod
A106: 27 | B106: GA 308 F - Dobbel garasje m/ bod
A107: 28 | B107: GA 309 P - Carport m/ bod
A108: 29 | B108: GA 310 F - Carport m/ bod
A109: 30 | B109: GA 311 F - Carport m/ bod
A110: 31 | B110: GA 401 S-A - Dobbel garasje m/ hems
A111: 32 | B111: GA 402 S-A - Dobbel garasje m/ hems
A112: 33 | B112: GA 403 S-A - Dobbel garasje m/ hems
A113: 34 | B113: GA 404 HV-A - Dobbel garasje m/ hems
A114: 35 | B114: GA 405 S-A - Dobbel garasje m/ hems
A115: 36
A116: 37
A117: 38
A118: 39
A119: 40
A120: 41
A121: 42
A122: 43
A123: 44
A124: 45
B131: Ja
B132: Nei

Sheet Budsjettrapport
G2: Budsjettrapport
K3: Kalkyledato : | L3: 2024-10-31
K4: Revisjonsdato :
C6: BYGGER'N GARASJER
E9: Hustype : | J9: =HLOOKUP(Tabell!$BB$2,Tabell!$G$1:$BH$70,70,FALSE) -> 45.4 | K9: =HLOOKUP(Tabell!$BB$2,Tabell!$G$1:$BI$72,72,FALSE) ->  | L9: =HLOOKUP(Tabell!$BB$2,Tabell!$G$1:$BH$70,70,FALSE) -> 45.4
E10: Prosjektnr : | K10: =HLOOKUP(Tabell!$BB$2,Tabell!$G$1:$BH$70,70,FALSE) -> 45.4 | L10: =HLOOKUP(Tabell!$BB$2,Tabell!$G$1:$BH$70,70,FALSE) -> 45.4
E11: Tiltakshaver : | K11: =HLOOKUP(Tabell!$BB$2,Tabell!$G$1:$BH$70,70,FALSE) -> 45.4 | L11: =HLOOKUP(Tabell!$BB$2,Tabell!$G$1:$BH$70,70,FALSE) -> 45.4
E12: Byggeadresse : | K12: =HLOOKUP(Tabell!$BB$2,Tabell!$G$1:$BH$70,70,FALSE) -> 45.4 | L12: =HLOOKUP(Tabell!$BB$2,Tabell!$G$1:$BH$70,70,FALSE) -> 45.4
C15: Byggekostnadsindeks : Enebolig i tre, kun materialer
G17: Basis indeks : | H17: 177.9 | I17: Indeksdato : | J17: 2024-04-01 | L17: Finn siste indeks her
G18: Dagens indeks : | H18: 178.6 | I18: Indeksdato : | J18: 2024-09-01
G19: Prisstigning : | H19: =((H18-H17)/H17) -> 0.003934794829
C21: PÅSLAG | E21: Kalkulert | I21: Justert
E23: Påslag materialer: | F23: 33 | G23: % | I23: 33 | J23: %
C26: Netto kostnader | I26: Kalkulert | J26: Justering | K26: Ekstrakost | L26: Sum | N26: Inngår i byggesett
C27: MATERIALER (direkte, lager og skaffevarer) | I27: =SUM(I28:I39) -> 125712.16 | L27: =SUM(L28:L39) -> 126206.8116 | P27: =SUM(P28:P39) -> 126206.8116
C28: 4004 | D28: YTTERDØRER | H28: =IF(L28=0,0,1) -> 1 | I28: =HLOOKUP(Tabell!$BB$2,Tabell!$G$1:$BH$68,3,FALSE) -> 5287.26 | J28: 0 | K28: 0 | L28: =(((I28*(1+$H$19))+((I28*(1+$H$19))*J28))+K28) -> 5308.064283 | N28: =_xlfn.IFS(O28=Tabell!$B$131,1,O28=Tabell!$B$132,0) -> 1 | O28: Ja | P28: =L28*N28 -> 5308.064283
C29: 4010 | D29: BYGNINGSPLATER, | H29: =IF(L29=0,0,1) -> 1 | I29: =HLOOKUP(Tabell!$BB$2,Tabell!$G$1:$BH$68,4,FALSE) -> 15171.74 | J29: 0 | K29: 0 | L29: 15231.43768 | N29: =_xlfn.IFS(O29=Tabell!$B$131,1,O29=Tabell!$B$132,0) -> 1 | O29: Ja | P29: =L29*N29 -> 15231.43768
C30: 4011 | D30: PAPP, FOLIE OG MEMBRAN | H30: 1 | I30: =HLOOKUP(Tabell!$BB$2,Tabell!$G$1:$BH$68,5,FALSE) -> 10569.86 | J30: 0 | K30: 0 | L30: 10611.45023 | N30: =_xlfn.IFS(O30=Tabell!$B$131,1,O30=Tabell!$B$132,0) -> 1 | O30: Ja | P30: 10611.45023
C31: 4012 | D31: SPIKER, SKRUER, LIM, BYGNINGSBESLAG | H31: 1 | I31: =HLOOKUP(Tabell!$BB$2,Tabell!$G$1:$BH$68,6,FALSE) -> 8746.66 | J31: 0 | K31: 0 | L31: 8781.076313 | N31: =_xlfn.IFS(O31=Tabell!$B$131,1,O31=Tabell!$B$132,0) -> 1 | O31: Ja | P31: 8781.076313
C32: 4014 | D32: TAKTEKKING, STEIN/METALL | H32: 0 | I32: =HLOOKUP(Tabell!$BB$2,Tabell!$G$1:$BH$68,8,FALSE) -> 0 | J32: 0 | K32: 0 | L32: 0 | N32: =_xlfn.IFS(O32=Tabell!$B$131,1,O32=Tabell!$B$132,0) -> 1 | O32: Ja | P32: 0
C33: 4015 | D33: TAKRENNER MED TILBEHØR | H33: 1 | I33: =HLOOKUP(Tabell!$BB$2,Tabell!$G$1:$BH$68,9,FALSE) -> 1925.49 | J33: 0 | K33: 0 | L33: 1933.066408 | N33: =_xlfn.IFS(O33=Tabell!$B$131,1,O33=Tabell!$B$132,0) -> 1 | O33: Ja | P33: 1933.066408
C34: 4020 | D34: STÅLPROFILER | H34: 1 | I34: =HLOOKUP(Tabell!$BB$2,Tabell!$G$1:$BH$68,11,FALSE) -> 23003.14 | J34: 0 | K34: 0 | L34: 23093.65264 | N34: =_xlfn.IFS(O34=Tabell!$B$131,1,O34=Tabell!$B$132,0) -> 1 | O34: Ja | P34: 23093.65264
C35: 4024 | D35: BESLAG | H35: 0 | I35: =HLOOKUP(Tabell!$BB$2,Tabell!$G$1:$BH$68,14,FALSE) -> 0 | J35: 0 | K35: 0 | L35: 0 | N35: =_xlfn.IFS(O35=Tabell!$B$131,1,O35=Tabell!$B$132,0) -> 1 | O35: Ja | P35: 0
C36: 4025 | D36: INNVENDIGE DØRER | H36: 1 | I36: =HLOOKUP(Tabell!$BB$2,Tabell!$G$1:$BH$68,15,FALSE) -> 2316.38 | J36: 0 | K36: 0 | L36: 2325.49448 | N36: =_xlfn.IFS(O36=Tabell!$B$131,1,O36=Tabell!$B$132,0) -> 1 | O36: Ja | P36: 2325.49448
C37: 4029 | D37: GARASJEPORTER | H37: 1 | I37: =HLOOKUP(Tabell!$BB$2,Tabell!$G$1:$BH$68,17,FALSE) -> 20595.1 | J37: 0 | K37: 0 | L37: 20676.13749 | N37: =_xlfn.IFS(O37=Tabell!$B$131,1,O37=Tabell!$B$132,0) -> 1 | O37: Ja | P37: 20676.13749
C38: 4030 | D38: LIMTRE OG KERTO | H38: 1 | I38: =HLOOKUP(Tabell!$BB$2,Tabell!$G$1:$BH$68,18,FALSE) -> 4129.01 | J38: 0 | K38: 0 | L38: 4145.256807 | N38: =_xlfn.IFS(O38=Tabell!$B$131,1,O38=Tabell!$B$132,0) -> 1 | O38: Ja | P38: 4145.256807
C39: 4031 | D39: TRELAST | H39: 1 | I39: =HLOOKUP(Tabell!$BB$2,Tabell!$G$1:$BH$68,19,FALSE) -> 33967.52 | J39: 0 | K39: 0 | L39: 34101.17522 | N39: =_xlfn.IFS(O39=Tabell!$B$131,1,O39=Tabell!$B$132,0) -> 1 | O39: Ja | P39: 34101.17522
C41: ORDRESTYRTE LEVERANSER | I41: =SUM(I42:I45) -> 12800.34 | L41: =SUM(L42:L45) -> 12850.70671 | P41: =SUM(P42:P45) -> 12850.70671
C42: 4106 | D42: TAKSTOLER/TAKVERK | H42: =IF(L42=0,0,1) -> 1 | I42: =HLOOKUP(Tabell!$BB$2,Tabell!$G$1:$BH$68,24,FALSE) -> 8045 | J42: 0 | K42: 0 | L42: =(((I42*(1+$H$19))+((I42*(1+$H$19))*J42))+K42) -> 8076.655424 | N42: =_xlfn.IFS(O42=Tabell!$B$131,1,O42=Tabell!$B$132,0) -> 1 | O42: Ja | P42: =L42*N42 -> 8076.655424
C43: 4107 | D43: VINDUER OG BALKONGDØRER | H43: 1 | I43: =HLOOKUP(Tabell!$BB$2,Tabell!$G$1:$BH$68,25,FALSE) -> 4755.34 | J43: 0 | K43: 0 | L43: 4774.051287 | N43: =_xlfn.IFS(O43=Tabell!$B$131,1,O43=Tabell!$B$132,0) -> 1 | O43: Ja | P43: 4774.051287
C44: 4127 | D44: PRECUT-PAKKE | H44: 0 | I44: =HLOOKUP(Tabell!$BB$2,Tabell!$G$1:$BH$68,27,FALSE) -> 0 | J44: 0 | K44: 0 | L44: 0 | N44: =_xlfn.IFS(O44=Tabell!$B$131,1,O44=Tabell!$B$132,0) -> 1 | O44: Ja | P44: 0
C45: 4132 | D45: I-TREBJELKER | H45: 0 | I45: =HLOOKUP(Tabell!$BB$2,Tabell!$G$1:$BH$68,28,FALSE) -> 0 | J45: 0 | K45: 0 | L45: 0 | N45: =_xlfn.IFS(O45=Tabell!$B$131,1,O45=Tabell!$B$132,0) -> 1 | O45: Ja | P45: 0
C47: ANNET | I47: =SUM(I48:I49) -> 0 | L47: =SUM(L48:L49) -> 0 | P47: =SUM(P48:P49) -> 0
C48: 4415 | D48: FRAKTUTGIFTER | H48: =IF(L48=0,0,1) -> 0 | I48: =HLOOKUP(Tabell!$BB$2,Tabell!$G$1:$BH$68,35,FALSE) -> 0 | J48: 0 | K48: 0 | L48: =(((I48*(1+$H$19))+((I48*(1+$H$19))*J48))+K48) -> 0 | N48: =_xlfn.IFS(O48=Tabell!$B$131,1,O48=Tabell!$B$132,0) -> 1 | O48: Ja | P48: =L48*N48 -> 0
C49: 4464 | D49: PROSJEKTERING KONTR.ANSV. | H49: =IF(L49=0,0,1) -> 0 | I49: =HLOOKUP(Tabell!$BB$2,Tabell!$G$1:$BH$68,36,FALSE) -> 0 | J49: 0 | K49: 0 | L49: =(((I49*(1+$H$19))+((I49*(1+$H$19))*J49))+K49) -> 0 | N49: =_xlfn.IFS(O49=Tabell!$B$131,1,O49=Tabell!$B$132,0) -> 1 | O49: Ja | P49: =L49*N49 -> 0
D50: ANDRE VARER | H50: =IF(L50=0,0,1) -> 0 | L50: 0 | N50: =_xlfn.IFS(O50=Tabell!$B$131,1,O50=Tabell!$B$132,0) -> 0 | O50: Nei | P50: =L50*N50 -> 0
C51: Sum | D51: Materialer | I51: =I27+I41+I47 -> 138512.5 | L51: =L27+L41+L47+L50 -> 139057.5183 | P51: =P27+P41+P47+P50 -> 139057.5183
C53: Resultat
C54: Påslag | D54: materialer | I54: =I51*($F$23/100) -> 45709.125 | L54: =L51*($I$23/100) -> 45888.98103 | P54: =P51*($I$23/100) -> 45888.98103
C56: Sum Inntekter | I56: =I51+I54 -> 184221.625 | L56: =L51+L54 -> 184946.4993 | P56: =SUM(#REF!,#REF!) -> 
D58: + 25% mva. | I58: =I56*0.25 -> 46055.40625 | L58: =L56*0.25 -> 46236.62482 | P58: =P56*0.25 -> 
C59: Sum Inntekter inkl. 25% mva. | I59: =SUM(I56,I58) -> 230277.0312 | L59: =SUM(L58,L56) -> 231183.1241 | P59: =SUM(P58,P56) -> 
G61: DEKNINGSGRAD: | I61: =(I56-I51)/I56 -> 0.2481203008 | L61: =(L56-L51)/L56 -> 0.2481203008 | P61: =(P56-#REF!)/P56 -> 
K67: kr/m2: | L67: =L59/L9 -> 5092.139298 | P67: =P59/L9 -> 
I70: =HLOOKUP(Tabell!$BB$2,Tabell!$G$1:$BH$68,2,FALSE) -> GA 308 F - Dobbel garasje m/ bod

Sheet Prisliste byggesett
A2: -4146
C4: PRISLISTE BYGGER'N GARASJER | G4: Om det er foretatt endringer/justeringer i arkfane Budsjettrapport, er det nødvendig å trykke Oppdater for at disse endringene skal bli gjeldende for prisliste.
C5: Byggesett
C6: Firmanavn
C9: Prisliste utarbeidet | D9: =Budsjettrapport!I18 -> Indeksdato : | E9: =Budsjettrapport!J18 -> 2024-09-01
C10: =TODAY() -> 2025-03-18
C12: Gjelder til
C13: =C10+30 -> 2025-04-17
C15: Garasjetype | D15: m² BRA | E15: Pris inkl. mva.
C17: GA 101 S-W - Enkel garasje | D17: 19.8 | E17: 129901.0735
C18: GA 102 S-W - Enkel garasje | D18: 19.8 | E18: 140493.5458
C19: GA 103 V-W - Enkel garasje | D19: 19.8 | E19: 164095.5799
C20: GA 104 HV-W - Enkel garasje | D20: 19.8 | E20: 157917.589
C21: GA 106 S-W - Enkel garasje | D21: 30.6 | E21: 181406.6457
C22: GA 107 S-W - Enkel carport | D22: 21.8 | E22: 114828.6098
C23: GA 108 S-W - Enkel garasje | D23: 25.6 | E23: 176425.8917
C24: GA 109 S-W - Enkel garasje | D24: 20.2 | E24: 114119.3505
C25: GA 111 F - Enkel carport | D25: 22.3 | E25: 92568.6854
C26: GA 112 F - Enkel garasje | D26: 25.6 | E26: 136139.033
C27: GA 201 S-W - Dobbel garasje | D27: 33.7 | E27: 173076.9765
C28: GA 202 S-W - Dobbel garasje | D28: 33.7 | E28: 200144.742
C29: GA 203 V-W - Dobbel garasje | D29: 37.2 | E29: 241040.8009
C30: GA 204 HV-W - Dobbel garasje | D30: 33.7 | E30: 200084.8067
C31: GA 206 S-W - Dobbel garasje | D31: 46.6 | E31: 240719.9277
C32: GA 207 P - Enkel garasje m/ carpor | D32: 25.6 | E32: 198331.1614
C33: GA 208 S-W - Dobbel garasje | D33: 37.2 | E33: 226177.9688
C34: GA 209 S-W - Dobbel garasje | D34: 33 | E34: 157164.8513
C35: GA 211 F - Dobbel garasje | D35: 37.2 | E35: 212150.5588
C36: GA 301 S-W - Enkel garasje m/bod | D36: 30.1 | E36: 170522.8588
C37: GA 302 S-W - Enkel garasje m/bod | D37: 36.7 | E37: 182807.0216
C38: GA 303 V-W - Enkel garasje m/bod | D38: 34.5 | E38: 225740.5965
C39: GA 305 P - Enkel garasje m/bod | D39: 33.1 | E39: 176820.6535
C40: GA 307 P - Enkel garasje m/bod | D40: 28.4 | E40: 155317.0553
C41: GA 308 F - Dobbel garasje m/ bod | D41: 45.4 | E41: 231183.1241
C42: GA 309 P - Carport m/ bod | D42: 35.9 | E42: 153375.3257
C43: GA 310 F - Carport m/ bod | D43: 25.5 | E43: 126246.1561
C44: GA 311 F - Carport m/ bod | D44: 26.7 | E44: 108128.1588
C45: GA 401 S-A - Dobbel garasje m/ hems | D45: 47 | E45: 209472.932
C46: GA 402 S-A - Dobbel garasje m/ hems | D46: 46.3 | E46: 273159.6705
C47: GA 403 S-A - Dobbel garasje m/ hems | D47: 46.4 | E47: 247622.1991
C48: GA 404 HV-A - Dobbel garasje m/ hems | D48: 44.9 | E48: 251793.6181
C49: GA 405 S-A - Dobbel garasje m/ hems | D49: 40.2 | E49: 314716.7533
A51: 30
A52: 31
A58: 32
A59: 33
A60: 34
A61: 35
A62: 36
A63: 37 | B63: Følgende er ikke inkludert i Byggesett-leveranse:
A64: 38 | B64: Tomt, grunnarbeider / gravearbeider, byggestrøm, VA og EL tilførsel inn til grunnmur, tilknytningsavgift EL, overvannsannlegg, kommunale gebyrer, indeksregulering, uavhengig kontrollør, terrasse, garasje. Håndverksarbeider som byggmester, rørlegger, elektriker og grunnmur/støpte golv/pipe, vedovn/oppvarming, overflatebehandling av tak, vegger og gulv. Samtlige priser er inkl. mva. og basert på HIBA® GARASJE LEVERANSEBESKRIVELSE 1-2020. Vi tar forbehold om trykkfeil.
A65: 39
A66: 40
